bitfinex/quotes_ETHUSD_20250708
["timestamp","ask_amount","ask_price","bid_price","bid_amount"]
[1752012809478,32.80168782,2607.1,2607.0,1e-08]
[1752012810513,32.80168782,2607.1,2606.4,0.0701032]
[1752012810514,3.83656244,2606.5,2606.4,0.0701032]
[1752012810686,10.49691947,2606.5,2606.4,0.0701032]
[1752012810875,9.67056244,2606.5,2606.4,0.0701032]
[1752012814612,9.86176244,2606.5,2606.4,0.0701032]
[1752012816311,4.02776244,2606.5,2606.4,0.0701032]
[1752012816514,3.83620129,2606.8,2606.4,0.0701032]
[1752012816816,3.83609076,2606.9,2606.5,0.54]
[1752012816817,3.83641525,2606.6,2606.5,0.54]
[1752012816984,3.83641525,2606.6,2606.4,0.0701032]
[1752012817191,9.71851947,2606.5,2606.4,0.0701032]
[1752012817484,9.67056244,2606.5,2606.4,0.0701032]
[1752012818025,9.86176244,2606.5,2606.4,0.0701032]
[1752012820493,9.86176244,2606.5,2606.4,0.0711032]
[1752012820697,6.0252,2606.5,2606.4,0.0711032]
[1752012821023,0.1912,2606.5,2606.4,7.67692099]
[1752012821215,5.834,2606.5,2606.4,12.28324238]
[1752012821817,5.834,2606.5,2606.4,8.44653275]
[1752012822999,0.04795519,2606.6,2606.4,8.44653275]
[1752012823200,5.834,2606.5,2606.4,8.44653275]
[1752012824329,5.834,2606.5,2606.4,7.67692099]
[1752012824628,5.834,2606.5,2606.4,11.51363062]
[1752012825019,0.1912,2606.7,2606.4,11.51363062]
[1752012825329,0.002,2606.9,2606.5,0.21039148]
[1752012825535,5.833,2606.8,2606.7,7.06581779]
[1752012825924,5.833,2606.8,2606.7,7.60581779]
[1752012830942,0.002,2606.9,2606.8,3.83612091]
[1752012831146,0.002,2606.9,2606.8,6.09513363]
[1752012832734,0.002,2606.9,2606.8,6.11431407]
[1752012833106,0.002,2606.9,2606.8,6.09513363]
[1752012847991,0.002,2606.9,2606.8,0.1912]
[1752012848490,0.002,2606.9,2606.7,7.25227875]
[1752012848663,0.002,2606.9,2606.7,6.17723227]
[1752012848864,3.88600382,2606.9,2606.6,0.001]
[1752012849048,0.04994967,2606.9,2606.6,0.001]
[1752012849252,0.380257,2607.0,2606.7,0.35890658]
[1752012849556,5.83,2606.9,2606.7,4.73698798]
[1752012850085,5.83,2607.0,2606.8,3.83600927]
[1752012850286,5.83,2607.0,2606.9,0.3589671]
[1752012850487,5.83,2607.0,2606.9,0.35907147]
[1752012850781,5.83,2607.0,2606.9,4.19504523]
[1752012850985,0.1912,2607.2,2607.0,3.83579723]
[1752012851182,6.0212,2607.2,2607.0,10.90161502]
[1752012851386,6.0212,2607.2,2607.0,7.06581779]
[1752012851590,6.0212,2607.2,2607.0,4.37821706]
[1752012852167,6.06914415,2607.2,2607.0,4.37821706]
[1752012852367,7.44313141,2607.2,2607.0,4.37821706]
[1752012852996,7.39518726,2607.2,2606.9,3.83596059]
[1752012853399,0.35853067,2607.1,2607.0,0.35919487]
[1752012853900,0.3586123,2607.1,2607.0,0.35927683]
[1752012854262,5.45014077,2607.2,2607.0,0.35927683]
[1752012854571,3.53042517,2607.2,2607.1,0.35927683]
[1752012854768,3.53042517,2607.2,2607.1,0.35937857]
[1752012854971,3.57836932,2607.2,2607.1,0.35937857]
[1752012855194,7.41390169,2607.2,2607.1,0.35937857]
[1752012855397,11.08746378,2607.2,2607.1,0.35937857]
[1752012855603,11.03951963,2607.2,2607.1,0.35937857]
[1752012856413,10.11801362,2607.2,2607.1,0.35937857]
[1752012857514,3.83535566,2607.4,2607.1,0.35937857]
[1752012857727,5.829,2607.2,2606.9,4.02710491]
[1752012857929,5.829,2607.2,2607.0,5.76526809]
[1752012858114,5.829,2607.2,2607.1,0.35958174]
[1752012860300,4.44683263,2607.2,2607.1,0.35958174]
[1752012863132,2.52717205,2607.2,2607.1,0.35958174]
[1752012863338,1.60574389,2607.2,2607.1,0.35958174]
[1752012863794,5.44127626,2607.2,2607.1,0.35958174]
[1752012864493,4.51984583,2607.2,2607.1,0.35958174]
[1752012864704,0.68431346,2607.2,2607.1,0.35958174]
[1752012865025,0.04794415,2607.2,2607.1,0.35971708]
[1752012865224,5.87894415,2607.2,2607.1,0.35971708]
[1752012865934,0.04994415,2607.2,2607.1,0.35971708]
[1752012866091,5.7291117,2607.2,2607.1,0.35971708]
[1752012866430,8.21124646,2607.2,2607.1,0.35971708]
[1752012866632,8.18246951,2607.2,2607.1,0.35971708]
[1752012868436,10.15457014,2607.2,2607.1,0.35971708]
[1752012868749,10.15457014,2607.2,2606.9,0.1912]
[1752012869046,0.02877695,2607.1,2606.9,0.1912]
[1752012870145,0.02877695,2607.1,2606.8,0.001]
[1752012870342,0.21997695,2607.1,2606.8,0.001]
[1752012870514,3.83597376,2606.9,2606.8,0.001]
[1752012870715,3.86475071,2606.9,2606.8,0.001]
[1752012870943,5.29502933,2606.9,2606.8,0.001]
[1752012871724,6.06922933,2606.9,2606.8,0.001]
[1752012871921,23.99922932,2606.9,2606.8,0.001]
[1752012872136,23.97045237,2606.9,2606.8,0.001]
[1752012875940,25.17045237,2606.9,2606.8,0.001]
[1752012877246,23.97045237,2606.9,2606.8,0.001]
[1752012880163,17.92999999,2606.9,2606.8,0.001]
[1752012880381,23.95019999,2606.9,2606.8,0.001]
[1752012880958,18.12119999,2606.9,2606.8,0.001]
[1752012881160,23.95019999,2606.9,2606.8,0.001]
[1752012883695,27.78617375,2606.9,2606.8,0.001]
[1752012884395,23.95019999,2606.9,2606.8,0.001]
[1752012885398,27.78617375,2606.9,2606.8,0.001]
[1752012889891,23.95019999,2606.9,2606.8,0.001]
[1752012890300,13.95019999,2606.9,2606.8,3.83712091]
[1752012890501,7.92999999,2606.9,2606.8,4.60456955]
[1752012890817,0.002,2607.2,2607.1,3.83567949]
[1752012891018,0.002,2607.2,2607.0,3.83574533]
[1752012891019,0.002,2607.2,2607.0,10.90156734]
[1752012891217,5.83,2607.2,2607.1,3.83567949]
[1752012891879,5.83,2607.2,2607.1,5.32854102]
[1752012892793,5.83,2607.2,2607.1,3.83567949]
[1752012894040,6.18786722,2607.2,2607.1,3.83567949]
[1752012895498,5.83,2607.2,2607.1,3.83567949]
[1752012900907,5.83,2607.2,2607.0,4.0269593]
[1752012901552,5.83,2607.2,2607.0,0.1912]
[1752012901838,3.83583204,2607.0,2606.8,0.001]
[1752012902002,5.85577695,2606.9,2606.8,0.001]
[1752012902209,0.1912,2607.0,2606.8,3.83706559]
[1752012902530,0.1912,2607.0,2606.8,0.001]
[1752012902847,5.827,2606.9,2606.8,0.001]
[1752012903004,0.1912,2607.0,2606.8,0.001]
[1752012903204,5.827,2606.9,2606.8,0.001]
[1752012903432,5.827,2606.9,2606.8,3.83712091]
[1752012903640,5.827,2606.9,2606.8,0.001]
[1752012905442,0.21997695,2607.0,2606.8,0.001]
[1752012905641,5.827,2606.9,2606.8,0.001]
[1752012907956,5.827,2607.0,2606.8,4.22082559]
[1752012908971,5.827,2607.0,2606.9,3.83597376]
[1752012910974,8.12319999,2607.2,2607.0,3.83578149]
[1752012911180,5.827,2607.1,2606.9,3.83589745]
[1752012911501,5.826,2607.0,2606.9,3.83589745]
[1752012911698,5.826,2607.0,2606.9,0.001]
[1752012912197,5.826,2607.0,2606.9,3.83697376]
[1752012913749,5.826,2607.0,2606.9,0.001]
[1752012914379,5.826,2607.0,2606.9,3.83697376]
[1752012915243,5.826,2607.0,2606.9,0.001]
[1752012916375,5.826,2607.0,2606.9,3.83697376]
[1752012918597,5.826,2607.0,2606.9,0.001]
[1752012918598,6.6378,2607.0,2606.9,0.001]
[1752012918779,8.03559769,2607.0,2606.9,0.001]
[1752012919295,11.87142431,2607.0,2606.9,0.001]
[1752012919596,12.2297829,2607.0,2606.9,0.001]
[1752012921706,12.7797829,2607.0,2606.9,0.001]
[1752012922066,22.7797829,2607.0,2606.9,0.001]
[1752012926124,22.42142431,2607.0,2606.9,0.001]
[1752012926621,23.62142431,2607.0,2606.9,0.001]
[1752012927791,23.97932971,2607.0,2606.9,0.001]
[1752012929725,23.62142431,2607.0,2606.9,0.001]
[1752012933927,22.42142431,2607.0,2606.9,0.001]
[1752012936297,16.59542431,2607.0,2606.9,0.001]
[1752012936531,22.42142431,2607.0,2606.9,0.001]
[1752012943405,23.97915185,2607.0,2606.9,0.001]
[1752012944025,18.15315185,2607.0,2606.9,0.001]
[1752012944235,19.52719098,2607.0,2606.9,0.001]
[1752012945212,25.35219098,2607.0,2606.9,0.001]
[1752012947436,23.95439329,2607.0,2606.9,0.001]
[1752012947646,22.58035416,2607.0,2606.9,0.001]
[1752012948034,7.2162,2607.0,2606.9,0.001]
[1752012948265,11.08080357,2607.0,2606.9,0.001]
[1752012948532,9.85202662,2607.0,2606.9,0.001]
[1752012950130,13.56401128,2607.0,2606.9,0.001]
[1752012950330,15.52301128,2607.0,2606.9,0.001]
[1752012951432,11.05202662,2607.0,2606.9,0.001]
[1752012951633,9.85202662,2607.0,2606.9,0.001]
[1752012952052,4.02702662,2607.0,2606.9,0.001]
[1752012952239,4.05580357,2607.0,2606.9,0.001]
[1752012952448,9.88080357,2607.0,2606.9,0.001]
[1752012952655,9.85202662,2607.0,2606.9,0.001]
[1752012953867,5.824,2607.0,2606.9,0.001]
[1752012957650,5.824,2607.0,2606.9,0.46268156]
[1752012963770,0.21997695,2607.1,2606.9,0.46268156]
[1752012963980,5.823,2607.0,2606.9,0.46268156]
[1752012964641,9.65882662,2607.0,2606.9,0.46268156]
[1752012964841,9.65882662,2607.0,2606.9,0.001]
[1752012971466,10.48462662,2607.0,2606.9,0.001]
[1752012975177,21.03462662,2607.0,2606.9,0.001]
[1752012976988,22.23462662,2607.0,2606.9,0.001]
[1752012977903,25.6348603,2607.0,2606.9,0.001]
[1752012979386,27.00739777,2607.0,2606.9,0.001]
[1752012981600,27.00739777,2607.0,2606.9,1e-08]
[1752012981810,27.20759498,2607.0,2606.9,1e-08]
[1752012982563,3.83626807,2606.7,2606.6,1e-08]
[1752012982768,6.08349183,2606.7,2606.6,1e-08]
[1752012982992,12.45549183,2606.7,2606.6,1e-08]
[1752012983207,12.42671488,2606.7,2606.6,1e-08]
[1752012985698,16.42671488,2606.7,2606.6,1e-08]
[1752012988014,24.35671487,2606.7,2606.6,1e-08]
[1752012988198,42.79147569,2606.7,2606.6,1e-08]
[1752012989787,43.08460827,2606.7,2606.6,1e-08]
[1752012995524,43.08460827,2606.7,2606.4,0.0711032]
[1752012995525,5.21716244,2606.5,2606.4,1e-08]
[1752012995695,21.06893939,2606.5,2606.4,1e-08]
[1752012995899,21.04016244,2606.5,2606.4,1e-08]
[1752012996097,16.58393041,2606.5,2606.4,1e-08]
[1752012996604,26.40693041,2606.5,2606.4,1e-08]
[1752012996937,29.80716409,2606.5,2606.4,1e-08]
[1752012998396,3.83656244,2606.5,2606.4,1e-08]
[1752012998594,9.68833939,2606.5,2606.4,1e-08]
[1752012998795,9.65956244,2606.5,2606.4,1e-08]
[1752012999099,7.92999999,2606.6,2606.4,1e-08]
[1752012999297,5.823,2606.5,2606.4,1e-08]
[1752012999498,15.823,2606.5,2606.4,1e-08]
[1752012999699,15.823,2606.5,2606.4,0.82360001]
[1752013000209,5.823,2606.5,2606.4,0.82360001]
[1752013000813,10.0,2606.5,2606.4,0.82360001]
[1752013001010,15.823,2606.5,2606.4,0.82360001]
[1752013001735,0.1912,2606.6,2606.5,4.66016244]
[1752013001915,0.002,2606.7,2606.6,4.66001525]
[1752013002315,0.002,2606.7,2606.6,4.85121525]
[1752013004606,0.002,2606.7,2606.6,4.8895794]
[1752013006207,0.002,2606.7,2606.6,4.85121525]
[1752013006418,0.002,2606.7,2606.6,6.51154378]
[1752013006744,0.002,2606.7,2606.6,6.47317963]
[1752013014639,0.002,2606.7,2606.6,2.63676438]
[1752013014838,0.002,2606.7,2606.6,6.47317963]
[1752013017158,0.002,2606.7,2606.6,2.63676438]
[1752013017452,0.002,2606.7,2606.4,17.18948846]
[1752013017453,3.83645415,2606.6,2606.4,1e-08]
[1752013017980,0.03077695,2606.7,2606.4,1e-08]
[1752013017981,3.86712124,2606.7,2606.4,1e-08]
[1752013020236,3.83656244,2606.5,2606.4,1e-08]
[1752013020433,11.1885341,2606.5,2606.4,1e-08]
[1752013020838,21.7385341,2606.5,2606.4,1e-08]
[1752013021436,15.9175341,2606.5,2606.4,1e-08]
[1752013021648,21.7385341,2606.5,2606.4,1e-08]
[1752013021856,15.3675341,2606.5,2606.4,1e-08]
[1752013022059,5.821,2606.5,2606.4,1e-08]
[1752013022367,9.84876244,2606.5,2606.4,1e-08]
[1752013022945,6.0122,2606.5,2606.4,1e-08]
[1752013023153,6.04097695,2606.5,2606.4,1e-08]
[1752013023473,9.87753939,2606.5,2606.4,1e-08]
[1752013023781,9.84876244,2606.5,2606.4,1e-08]
[1752013025757,6.0122,2606.5,2606.4,1e-08]
[1752013025957,6.04097695,2606.5,2606.4,1e-08]
[1752013027370,0.21997695,2606.5,2606.4,1e-08]
[1752013027545,6.04097695,2606.5,2606.4,1e-08]
[1752013028761,10.002,2606.7,2606.4,1e-08]
[1752013028964,5.821,2606.5,2606.4,1e-08]
[1752013030166,5.821,2606.5,2606.4,3.83664247]
[1752013030347,5.821,2606.5,2606.4,3.83670964]
[1752013030683,5.821,2606.5,2606.4,1e-08]
[1752013033278,5.821,2606.5,2606.4,3.83670964]
[1752013034084,5.821,2606.5,2606.4,1e-08]
[1752013034977,5.821,2606.5,2606.4,3.83670964]
[1752013035493,6.04097695,2606.6,2606.4,3.83670964]
[1752013035774,6.04097695,2606.6,2606.4,1e-08]
[1752013036354,6.04097695,2606.6,2606.4,3.8366809]
[1752013037381,6.04097695,2606.6,2606.4,1e-08]
[1752013042360,6.04297695,2606.6,2606.4,1e-08]
[1752013046473,9.87940728,2606.6,2606.4,1e-08]
[1752013046673,9.85063033,2606.6,2606.4,1e-08]
[1752013046891,3.86533939,2606.5,2606.4,1e-08]
[1752013049687,3.83656244,2606.5,2606.4,1e-08]
[1752013049890,3.86533939,2606.5,2606.4,1e-08]
[1752013050807,0.02877695,2606.5,2606.4,1e-08]
[1752013060804,3.86533939,2606.5,2606.4,1e-08]
[1752013060980,5.45423542,2606.5,2606.4,1e-08]
[1752013061402,6.00423542,2606.5,2606.4,1e-08]
[1752013063703,16.00423542,2606.5,2606.4,1e-08]
[1752013063886,16.75495847,2606.5,2606.4,1e-08]
[1752013065097,24.68495846,2606.5,2606.4,1e-08]
[1752013065332,24.68695846,2606.5,2606.4,1e-08]
[1752013065822,26.05956549,2606.5,2606.4,1e-08]
[1752013066385,26.25978096,2606.5,2606.4,1e-08]
[1752013075044,33.32559875,2606.5,2606.4,1e-08]
[1752013075352,37.32559875,2606.5,2606.4,1e-08]
[1752013076214,30.25978096,2606.5,2606.4,1e-08]
[1752013077617,36.08078096,2606.5,2606.4,1e-08]
[1752013079642,30.25978096,2606.5,2606.4,1e-08]
[1752013079819,36.08078096,2606.5,2606.4,1e-08]
[1752013081148,35.88056549,2606.5,2606.4,1e-08]
[1752013081449,31.88056549,2606.5,2606.4,1e-08]
[1752013081823,19.30460702,2606.5,2606.4,1e-08]
[1752013082019,9.30460702,2606.5,2606.4,0.81730001]
[1752013082346,13.75299999,2606.5,2606.4,4.65400964]
[1752013082725,13.75299999,2606.5,2606.4,0.81730001]
[1752013083137,7.93199999,2606.5,2606.4,0.81730001]
[1752013083337,13.75299999,2606.5,2606.4,0.81730001]
[1752013087962,13.75299999,2606.5,2606.4,1.30184325]
[1752013088263,13.75199999,2606.5,2606.4,1.30184325]
[1752013089960,13.75199999,2606.5,2606.4,5.13855288]
[1752013090359,0.002,2606.5,2606.4,5.13855288]
[1752013093450,0.002,2606.5,2606.4,5.17691997]
[1752013093760,0.002,2606.5,2606.4,5.13855288]
[1752013094760,0.002,2606.5,2606.4,5.17691997]
[1752013104583,0.002,2606.5,2606.4,0.48454325]
[1752013104752,0.002,2606.5,2606.4,1e-08]
[1752013105378,0.002,2606.5,2606.4,4.62330964]
[1752013105875,0.002,2606.5,2606.4,4.66167673]
[1752013111458,0.002,2606.5,2606.4,11.72749452]
[1752013111771,0.002,2606.5,2606.4,11.88032743]
[1752013111976,0.002,2606.5,2606.4,14.03384473]
[1752013112583,0.002,2606.5,2606.4,19.85184473]
[1752013125608,0.002,2606.5,2606.4,12.78502694]
[1752013125790,0.002,2606.5,2606.4,19.85084473]
[1752013126986,0.002,2606.5,2606.4,19.06424473]
[1752013128590,0.002,2606.5,2606.4,0.19120001]
[1752013128797,0.002,2606.5,2606.4,9.84390964]
[1752013128990,0.002,2606.5,2606.4,6.00720001]
[1752013130695,0.002,2606.5,2606.4,0.19120001]
[1752013130876,0.002,2606.5,2606.4,1e-08]
[1752013131077,0.7814,2606.5,2606.4,5.81600001]
[1752013131278,0.7814,2606.5,2606.4,1e-08]
[1752013131574,5.68663788,2606.5,2606.4,1e-08]
[1752013131778,15.68663788,2606.5,2606.4,1e-08]
[1752013132096,15.65786093,2606.5,2606.4,1e-08]
[1752013133900,21.47486093,2606.5,2606.4,1e-08]
[1752013138505,11.82129849,2606.5,2606.4,1e-08]
[1752013138681,0.002,2606.5,2606.4,3.83670964]
[1752013138876,0.002,2606.5,2606.4,4.85927673]
[1752013139277,0.002,2606.5,2606.4,10.63790964]
[1752013139674,0.002,2606.5,2606.4,12.79196549]
[1752013152928,0.002,2606.5,2606.4,19.85678328]
[1752013164323,1e-08,2606.5,2606.4,19.85678328]
[1752013166740,1e-08,2606.5,2606.4,19.85578328]
[1752013169948,1e-08,2606.5,2606.4,23.11055314]
[1752013172348,1e-08,2606.6,2606.5,13.83656244]
[1752013172649,1e-08,2606.6,2606.5,17.28280086]
[1752013176849,1e-08,2606.6,2606.5,20.73352649]
[1752013177454,1e-08,2606.6,2606.5,20.73327375]
[1752013178241,1e-08,2606.6,2606.5,20.73289098]
[1752013178646,1e-08,2606.6,2606.5,17.28280086]
[1752013179864,1e-08,2606.6,2606.5,17.47400086]
[1752013186235,1e-08,2606.7,2606.6,14.65551525]
[1752013186547,1e-08,2606.7,2606.6,24.86740773]
[1752013188483,1e-08,2606.7,2606.6,19.05440773]
[1752013188781,1e-08,2606.7,2606.6,34.08040773]
[1752013197150,1e-08,2606.7,2606.6,34.07940773]
[1752013198677,1e-08,2606.7,2606.6,28.26740773]
[1752013198848,1e-08,2606.7,2606.6,34.07940773]
[1752013201353,1e-08,2606.7,2606.6,38.63868308]
[1752013202155,1e-08,2606.7,2606.6,34.07940773]
[1752013205161,0.002,2607.2,2607.1,3.83567949]
[1752013205356,0.002,2607.6,2607.5,3.83509108]
[1752013205561,0.002,2607.6,2607.5,16.75025978]
[1752013205790,0.002,2607.6,2607.5,16.90310887]
[1752013215101,0.002,2607.6,2607.5,9.83729108]
[1752013215301,0.002,2607.6,2607.5,18.27035871]
[1752013228299,0.002,2607.6,2607.5,9.83729108]
[1752013229624,0.002,2607.6,2607.5,9.83529108]
[1752013231232,0.002,2607.6,2607.5,4.02629108]
[1752013231406,0.002,2607.6,2607.5,9.83529108]
[1752013238301,0.002,2607.6,2607.5,9.83429108]
[1752013244848,0.002,2607.6,2607.5,4.02629108]
[1752013245144,0.002,2607.6,2607.5,9.83429108]
[1752013248854,0.002,2607.6,2607.5,15.48556553]
[1752013252166,0.002,2607.6,2607.5,4.02629108]
[1752013252373,0.03077695,2607.6,2607.5,5.807]
[1752013252654,4.66575048,2607.6,2607.5,5.807]
[1752013252860,5.71027639,2607.6,2607.5,5.807]
[1752013253824,5.73905334,2607.6,2607.5,5.807]
[1752013254158,3.83515075,2607.5,2607.1,0.1922]
[1752013254345,3.83515075,2607.5,2607.2,5.807]
[1752013254346,0.7713,2607.3,2607.2,5.807]
[1752013254660,4.59573237,2607.2,2607.1,0.001]
[1752013254846,4.62450932,2607.2,2607.1,5.808]
[1752013255532,5.17450932,2607.2,2607.1,0.001]
[1752013255732,16.8672335,2607.2,2607.1,0.001]
[1752013256057,16.83845655,2607.2,2607.1,0.001]
[1752013263253,24.76845654,2607.2,2607.1,0.001]
[1752013266978,18.69019999,2607.2,2607.1,0.001]
[1752013267143,18.88139999,2607.2,2607.1,0.001]
[1752013270067,18.12119999,2607.2,2607.1,0.001]
[1752013275047,21.95673236,2607.2,2607.1,0.001]
[1752013279280,22.75143236,2607.2,2607.1,0.001]
[1752013279481,25.41211648,2607.2,2607.1,0.001]
[1752013290710,21.57658411,2607.2,2607.1,0.001]
[1752013290918,25.41211648,2607.2,2607.1,0.001]
[1752013291623,8.12319999,2607.2,2607.1,0.001]
[1752013292189,8.12319999,2607.2,2607.1,3.83667949]
[1752013293290,8.12319999,2607.2,2607.1,0.001]
[1752013301552,8.12319999,2607.2,2607.1,3.83667949]
[1752013303153,7.93199999,2607.2,2607.1,4.66087949]
[1752013303727,7.93199999,2607.2,2607.1,6.81759571]
[1752013304058,0.002,2607.2,2607.1,7.00879571]
[1752013304259,0.002,2607.2,2607.1,7.0471525]
[1752013304822,0.002,2607.2,2607.1,7.00879571]
[1752013309154,0.002,2607.2,2607.1,7.0471525]
[1752013311258,0.002,2607.2,2607.1,7.00879571]
[1752013312540,0.002,2607.2,2607.1,7.0471525]
[1752013313569,0.002,2607.2,2607.1,7.00879571]
[1752013313868,0.002,2607.2,2607.1,7.0471525]
[1752013323082,0.002,2607.2,2607.1,7.00879571]
[1752013323254,0.002,2607.2,2607.1,12.81279571]
[1752013323957,0.002,2607.2,2607.1,7.00879571]
[1752013324189,0.002,2607.2,2607.1,12.8511525]
[1752013324493,0.002,2607.2,2607.1,12.81279571]
[1752013326798,0.002,2607.2,2607.1,7.00879571]
[1752013326999,0.002,2607.2,2607.1,12.81279571]
[1752013330796,0.002,2607.2,2607.1,6.18459571]
[1752013331002,0.002,2607.2,2607.1,9.83187949]
[1752013332013,0.002,2607.2,2607.1,9.83087949]
[1752013338006,0.002,2607.2,2607.1,0.1922]
[1752013338325,0.9478,2607.2,2607.1,5.804]
[1752013339206,0.002,2607.2,2607.1,9.63967949]
[1752013339377,0.002,2607.2,2607.1,11.50197511]
[1752013350819,0.002,2607.2,2607.1,12.31287511]
[1752013350986,1e-08,2607.2,2607.1,12.31287511]
[1752013351698,1e-08,2607.2,2607.1,15.76375191]
[1752013352014,1e-08,2607.2,2607.1,26.31375191]
[1752013352325,1e-08,2607.2,2607.1,22.86287511]
[1752013357231,1e-08,2607.7,2607.6,4.642644]
[1752013357430,0.7914,2608.6,2607.9,4.60100285]
[1752013357599,0.7914,2608.6,2607.9,27.51162453]
[1752013357799,0.7914,2608.6,2607.9,27.66447951]
[1752013357994,0.002,2608.7,2607.9,27.66447951]
[1752013358201,1e-08,2608.0,2607.9,27.66447951]
[1752013358417,1e-08,2608.0,2607.9,31.51337199]
[1752013361531,1e-08,2608.0,2607.9,31.51237199]
[1752013369636,1e-08,2608.0,2607.9,25.71137199]
[1752013369937,1e-08,2608.0,2607.9,30.74387199]
[1752013372137,1e-08,2608.0,2607.9,31.57117199]
[1752013384247,1e-08,2608.0,2607.9,35.0150204]
[1752013385957,1e-08,2608.0,2607.9,35.0160204]
[1752013387360,1e-08,2608.0,2607.9,31.57217199]
[1752013394269,1e-08,2608.2,2608.1,3.83420881]
[1752013394574,1e-08,2608.2,2608.1,22.67584532]
[1752013394767,1e-08,2608.2,2608.1,22.82870324]
[1752013397155,1e-08,2608.2,2608.1,16.21630324]
[1752013397355,1e-08,2608.2,2608.1,22.01430324]
[1752013398477,1e-08,2608.2,2608.1,16.21630324]
[1752013398696,1e-08,2608.2,2608.1,22.01430324]
[1752013399990,1e-08,2608.2,2608.1,16.21630324]
[1752013400197,1e-08,2608.2,2608.1,19.6660037]
[1752013400359,1e-08,2608.2,2608.1,25.4630037]
[1752013400894,1e-08,2608.2,2608.1,15.4630037]
[1752013401096,1e-08,2608.2,2608.1,4.02540881]
[1752013401304,0.83010001,2608.2,2608.1,0.1912]
[1752013401489,0.83010001,2608.2,2608.1,5.9882]
[1752013403371,0.83010001,2608.2,2607.9,0.001]
[1752013403573,0.02877695,2608.1,2607.9,0.1922]
[1752013403774,0.8228,2608.0,2607.9,0.1922]
[1752013403974,0.8228,2608.0,2607.9,5.9892]
[1752013405205,0.8228,2608.0,2607.9,0.1922]
[1752013405399,0.8228,2608.0,2607.9,5.9892]
[1752013407612,0.8228,2608.0,2607.9,0.1922]
[1752013407809,0.8228,2608.0,2607.9,5.9902]
[1752013410524,0.8228,2608.0,2607.9,9.82470285]
[1752013415979,0.75810001,2608.2,2608.0,3.8343411]
[1752013416188,1.23948499,2608.2,2608.1,5.798]
[1752013425615,0.75810001,2608.2,2608.1,5.798]
[1752013428510,0.75810001,2608.2,2608.1,9.63220881]
[1752013430424,0.75810001,2608.2,2608.1,5.798]
[1752013430600,0.75810001,2608.2,2608.1,9.63220881]
[1752013432121,1e-08,2608.2,2608.1,9.63220881]
[1752013432716,0.02877696,2608.2,2608.1,5.798]
[1752013433813,1e-08,2608.2,2608.1,5.798]
[1752013434014,1e-08,2608.2,2608.1,9.63220881]
[1752013437817,1e-08,2608.2,2608.1,5.798]
[1752013438022,0.7945,2608.1,2607.9,0.1922]
[1752013438226,0.02877695,2608.0,2607.9,0.1922]
[1752013438535,0.02877695,2608.0,2607.9,5.9892]
[1752013439922,0.02877695,2608.0,2607.9,5.798]
[1752013440855,0.02877695,2608.0,2607.9,0.001]
[1752013441144,0.02877695,2608.0,2607.9,5.798]
[1752013441348,0.02877695,2608.0,2607.9,0.001]
[1752013441571,0.02877695,2608.0,2607.9,5.798]
[1752013441854,0.02877695,2608.0,2607.9,0.001]
[1752013442055,0.02877695,2608.0,2607.9,5.798]
[1752013448866,3.86313277,2608.0,2607.9,0.001]
[1752013449163,1.53693224,2608.0,2607.9,5.798]
[1752013449467,1.05207695,2608.0,2607.9,5.798]
[1752013450663,4.88643277,2608.0,2607.9,5.798]
[1752013452541,1.05207695,2608.0,2607.9,5.798]
[1752013452859,4.88643277,2608.0,2607.9,5.798]
[1752013455952,4.88643277,2608.0,2607.9,0.001]
[1752013456158,4.88643277,2608.0,2607.9,5.797]
[1752013456459,1.05207695,2608.0,2607.9,5.797]
[1752013456652,1.0233,2608.0,2607.9,5.797]
[1752013460081,5.72969907,2608.0,2607.9,5.797]
[1752013460579,5.75847602,2608.0,2607.9,5.797]
[1752013461754,5.75847602,2608.0,2607.9,0.001]
[1752013461950,5.75847602,2608.0,2607.9,5.797]
[1752013462577,1.0920202,2608.0,2607.9,5.797]
[1752013462775,0.1912,2608.0,2607.9,5.797]
[1752013465578,0.02877695,2608.1,2607.9,5.797]
[1752013466993,0.02877696,2608.2,2607.9,5.797]
[1752013467189,0.02877696,2608.2,2607.9,5.9882]
[1752013468052,3.86285536,2608.2,2607.9,5.9882]
[1752013468579,3.83430211,2608.1,2607.9,5.9882]
[1752013469084,3.86292775,2608.2,2607.9,5.9882]
[1752013469658,2.02428973,2608.2,2607.9,5.9882]
[1752013469852,3.83435582,2608.0,2607.9,5.797]
[1752013470050,3.86313277,2608.0,2607.9,5.797]
[1752013472254,3.86313277,2608.0,2607.9,0.001]
[1752013472255,4.62753277,2608.0,2607.9,0.001]
[1752013472455,5.59357869,2608.0,2607.9,0.001]
[1752013472998,24.07357868,2608.0,2607.9,0.001]
[1752013473179,25.42132873,2608.0,2607.9,0.001]
[1752013473794,25.62143576,2608.0,2607.9,0.001]
[1752013473952,25.62143576,2608.0,2607.9,1e-08]
[1752013474150,27.34225628,2608.0,2607.9,1e-08]
[1752013474702,25.81275715,2608.0,2607.9,1e-08]
[1752013474870,26.88311252,2608.0,2607.9,1e-08]
[1752013475067,27.03682352,2608.0,2607.9,1e-08]
[1752013475376,29.32597517,2608.0,2607.9,1e-08]
[1752013475554,28.2556198,2608.0,2607.9,1e-08]
[1752013475751,33.86029841,2608.0,2607.9,1e-08]
[1752013475963,31.41743576,2608.0,2607.9,1e-08]
[1752013476228,31.33733453,2608.0,2607.9,1e-08]
[1752013476523,35.41743576,2608.0,2607.9,1e-08]
[1752013478230,37.1314826,2608.0,2607.9,1e-08]
[1752013478807,35.41743576,2608.0,2607.9,1e-08]
[1752013480016,31.41743576,2608.0,2607.9,1e-08]
[1752013483141,35.41743576,2608.0,2607.9,1e-08]
[1752013491646,29.62143576,2608.0,2607.9,1e-08]
[1752013491820,24.04190876,2608.0,2607.9,1e-08]